[Event "Elegant 1st Division League 2024"]
[Site "Dhaka"]
[Date "2024.07.18"]
[Round "8.2"]
[White "Salim Mohammed, Salim Al Amri"]
[Black "Shourya Paul"]
[Result "0-1"]
[Annotator "RC"]
[ECO "E63"]
[WhiteElo "1928"]
[BlackElo "1813"]
[PlyCount "92"]
[EventDate "2024.07.10"]
[EventType "team-tourn"]
[EventCountry "BAN"]
[SourceTitle "playchess.com"]
[Source "ChessBase"]
[SourceQuality "1"]
[TimeControl "5400+30"]

1. c4 {[%emt 0:00:40]} Nf6 {[%emt 0:00:45]} 2. Nc3 {[%emt 0:00:05]} g6 {[%emt 0:00:17]} 3. g3 {[%emt 0:00:22]} Bg7 {[%emt 0:00:12]} 4. Bg2 {[%emt 0:00:01]} O-O {[%emt 0:00:10]} 5. d4 {[%emt 0:00:31]} d6 {[%emt 0:00:28]} 6. Nf3 {[%emt 0:02:29]} Nc6 {[%emt 0:01:37]} 7. O-O {[%emt 0:02:20]} a6 {[%emt 0:00:23]} 8. Bg5 {[%emt 0:04:18]} h6 {[%emt 0:01:49]} 9. Bxf6 {[%emt 0:02:21]} Bxf6 {[%emt 0:00:17]} 10. e3 {[%emt 0:00:41]} Rb8 {[%emt 0:01:35]} 11. Rc1 {[%emt 0:04:38]} Bg7 {[%emt 0:03:42]} 12. a3 {[%emt 0:02:32]} e5 {[%emt 0:05:25]} 13. b4 {[%emt 0:05:50]} exd4 {[%emt 0:03:14]} 14. Nxd4 {[%emt 0:03:23]} Ne5 {[%emt 0:01:53]} 15. Ne4 {[%emt 0:06:09]} Re8 {[%emt 0:13:48]} 16. Qc2 {[%emt 0:04:19]} f5 {[%emt 0:04:03]} 17. Nd2 {[%emt 0:00:31]} c6 {[%emt 0:00:14]} 18. h3 {[%emt 0:09:27]} Qf6 {[%emt 0:01:57]} 19. Rcd1 {[%emt 0:03:05]} g5 {[%emt 0:09:08]} 20. f4 {[%emt 0:03:20]} Ng6 {[%emt 0:07:06]} 21. fxg5 {[%emt 0:05:17]} Qxg5 {[%emt 0:00:37]} 22. Nxf5 {[%emt 0:01:53]} Bxf5 {[%emt 0:03:11]} 23. Qxf5 {[%emt 0:08:57]} Qxg3 {[%emt 0:01:59]} 24. Rf3 {[%emt 0:03:36]} Qxg2+ {[%emt 0:01:01]} 25. Kxg2 {[%emt 0:00:10]} Nh4+ {[%emt 0:00:03]} 26. Kf2 {[%emt 0:01:15]} Nxf5 {[%emt 0:00:10]} 27. Rxf5 {[%emt 0:00:08]} Re6 {[%emt 0:02:48]} 28. Kf3 {[%emt 0:03:16]} Rbe8 {[%emt 0:02:15]} 29. Nf1 {[%emt 0:01:09]} b5 {[%emt 0:01:11]} 30. cxb5 {[%emt 0:02:48]} axb5 {[%emt 0:00:21]} 31. Rd3 {[%emt 0:20:29]} Ra8 {[%emt 0:01:56]} 32. Nd2 {[%emt 0:00:00]} Bb2 {[%emt 0:02:06]} 33. Nb1 {[%emt 0:00:00]} Be5 {[%emt 0:01:33]} 34. h4 {[%emt 0:00:00]} Rg6 {[%emt 0:00:44]} 35. Rb3 {[%emt 0:00:00]} Rg3+ {[%emt 0:01:46]} 36. Kf2 {[%emt 0:00:00]} Rh3 {[%emt 0:00:17]} 37. Nd2 {[%emt 0:00:00]} Rh2+ {[%emt 0:02:00]} 38. Ke1 {[%emt 0:00:00]} Rxh4 {[%emt 0:03:42]} 39. Nf3 {[%emt 0:00:00]} Rh1+ {[%emt 0:00:08]} 40. Ke2 {[%emt 0:00:00]} Bg7 {[%emt 0:03:34]} 41. Rd3 {[%emt 0:01:02]} d5 {[%emt 0:01:11]} 42. Ne5 {[%emt 0:00:59]} Bxe5 {[%emt 0:04:24]} 43. Rxe5 {[%emt 0:00:01]} Kf7 {[%emt 0:00:05]} 44. Rc3 {[%emt 0:00:09]} Kf6 {[%emt 0:00:12]} 45. Rxd5 {[%emt 0:02:54]} cxd5 {[%emt 0:00:04]} 46. Rc5 {[%emt 0:00:25]} Ke5 {[%emt 0:18:09]} 0-1

[Event "Elegant 1st Division League 2024"]
[Site "Dhaka"]
[Date "2024.07.18"]
[Round "8.3"]
[White "Shankhodip De"]
[Black "Afnan, Zarif Haque"]
[Result "1-0"]
[Annotator "RC"]
[ECO "D11"]
[WhiteElo "1942"]
[BlackElo "1853"]
[PlyCount "87"]
[EventDate "2024.07.10"]
[EventType "team-tourn"]
[EventCountry "BAN"]
[SourceTitle "playchess.com"]
[Source "ChessBase"]
[SourceQuality "1"]
[TimeControl "5400+30"]

1. d4 {[%emt 0:01:12]} d5 {[%emt 0:00:07]} 2. Nf3 {[%emt 0:00:14]} Nf6 {[%emt 0:00:05]} 3. g3 {[%emt 0:00:12]} Bf5 {[%emt 0:00:25]} 4. Bg2 {[%emt 0:00:17]} e6 {[%emt 0:00:13]} 5. c4 {[%emt 0:00:05]} c6 {[%emt 0:00:23]} 6. Nc3 {[%emt 0:00:05]} h6 {[%emt 0:00:20]} 7. Qb3 {[%emt 0:00:25]} Qb6 {[%emt 0:00:51]} 8. c5 {[%emt 0:00:06]} Qa6 {[%emt 0:04:33]} 9. Bf1 {[%emt 0:05:27]} b5 {[%emt 0:12:03]} 10. a4 {[%emt 0:16:57]} bxa4 {[%emt 0:33:00]} 11. Qxa4 {[%emt 0:16:57]} Qxa4 {[%emt 0:11:39]} 12. Nxa4 {[%emt 0:00:30]} Nbd7 {[%emt 0:09:54]} 13. Bf4 {[%emt 0:05:06]} g5 {[%emt 0:04:21]} 14. Be5 {[%emt 0:00:22]} Nxe5 {[%emt 0:00:35]} 15. Nxe5 {[%emt 0:00:04]} Rc8 {[%emt 0:01:11]} 16. Nc3 {[%emt 0:02:00]} Nd7 {[%emt 0:04:37]} 17. Nxd7 {[%emt 0:20:29]} Kxd7 {[%emt 0:00:03]} 18. Rxa7+ {[%emt 0:04:23]} Rc7 {[%emt 0:00:05]} 19. Ra4 {[%emt 0:00:16]} Rb7 {[%emt 0:01:39]} 20. Bg2 {[%emt 0:05:54]} Bg7 {[%emt 0:03:17]} 21. O-O {[%emt 0:04:13]} Rhb8 {[%emt 0:00:46]} 22. e3 {[%emt 0:06:04]} Rxb2 {[%emt 0:00:59]} 23. Ra5 {[%emt 0:07:19]} Bd3 {[%emt 0:01:24]} 24. Rd1 {[%emt 0:00:26]} Bc2 {[%emt 0:03:20]} 25. Rd2 {[%emt 0:00:53]} Bg6 {[%emt 0:00:02]} 26. Rd1 {[%emt 0:01:26]} R2b3 {[%emt 0:00:19]} 27. Rc1 {[%emt 0:00:50]} e5 {[%emt 0:00:27]} 28. Ra7+ {[%emt 0:00:03]} Ke8 {[%emt 0:03:23]} 29. Ne2 {[%emt 0:01:57]} Rb1 {[%emt 0:01:45]} 30. Ra1 {[%emt 0:00:33]} Rxc1+ {[%emt 0:00:01]} 31. Rxc1 {[%emt 0:00:07]} Rb2 {[%emt 0:01:49]} 32. Re1 {[%emt 0:00:56]} Kd7 {[%emt 0:00:18]} 33. Bh3+ {[%emt 0:00:32]} Kc7 {[%emt 0:01:19]} 34. dxe5 {[%emt 0:00:33]} Bxe5 {[%emt 0:00:02]} 35. f4 {[%emt 0:00:29]} Bd3 {[%emt 0:01:34]} 36. Nc1 {[%emt 0:00:17]} Bc3 {[%emt 0:00:38]} 37. Nxd3 {[%emt 0:00:02]} Rd2 {[%emt 0:00:34]} 38. Ne5 {[%emt 0:00:41]} Rc2 {[%emt 0:00:30]} 39. Rf1 {[%emt 0:00:10]} d4 {[%emt 0:00:16]} 40. Bf5 {[%emt 0:01:23]} Re2 {[%emt 0:00:34]} 41. Nxf7 {[%emt 0:00:19]} dxe3 {[%emt 0:00:17]} 42. fxg5 {[%emt 0:00:38]} hxg5 {[%emt 0:00:16]} 43. Nxg5 {[%emt 0:00:15]} Bd4 {[%emt 0:00:22]} 44. Ne6+ {[%emt 0:00:10]} 1-0

[Event "Elegant 1st Division League 2024"]
[Site "Dhaka"]
[Date "2024.07.18"]
[Round "8.4"]
[White "Islam, Obaidul Shahin"]
[Black "Aiyan, Rahman"]
[Result "1-0"]
[Annotator "RC"]
[ECO "B01"]
[WhiteElo "1976"]
[BlackElo "1847"]
[PlyCount "77"]
[EventDate "2024.07.10"]
[EventType "team-tourn"]
[EventCountry "BAN"]
[SourceTitle "playchess.com"]
[Source "ChessBase"]
[SourceQuality "1"]
[TimeControl "5400+30"]

1. e4 {[%emt 0:00:06]} d5 {[%emt 0:00:28]} 2. exd5 {[%emt 0:00:11]} Qxd5 {[%emt 0:00:02]} 3. Nc3 {[%emt 0:00:09]} Qa5 {[%emt 0:00:04]} 4. Nf3 {[%emt 0:00:07]} Nf6 {[%emt 0:00:40]} 5. d4 {[%emt 0:00:07]} c6 {[%emt 0:02:20]} 6. Bd2 {[%emt 0:00:03]} Bf5 {[%emt 0:01:11]} 7. Bc4 {[%emt 0:00:22]} e6 {[%emt 0:00:38]} 8. h3 {[%emt 0:06:26]} Qc7 {[%emt 0:04:42]} 9. Nh4 {[%emt 0:03:02]} Bg6 {[%emt 0:01:36]} 10. Nxg6 {[%emt 0:00:48]} hxg6 {[%emt 0:00:03]} 11. Qe2 {[%emt 0:00:28]} Be7 {[%emt 0:06:23]} 12. O-O-O {[%emt 0:01:06]} Nbd7 {[%emt 0:02:18]} 13. Kb1 {[%emt 0:01:39]} Nb6 {[%emt 0:08:56]} 14. Bb3 {[%emt 0:00:18]} O-O-O {[%emt 0:00:14]} 15. Bc1 {[%emt 0:06:39]} Rhe8 {[%emt 0:03:29]} 16. f4 {[%emt 0:03:12]} Bd6 {[%emt 0:01:22]} 17. Qf3 {[%emt 0:00:35]} Nbd5 {[%emt 0:11:41]} 18. Ne2 {[%emt 0:10:29]} c5 {[%emt 0:12:26]} 19. c4 {[%emt 0:09:51]} Nb4 {[%emt 0:10:00]} 20. Bd2 {[%emt 0:05:21]} Na6 {[%emt 0:08:16]} 21. g4 {[%emt 0:13:26]} Nd7 {[%emt 0:07:26]} 22. Ba4 {[%emt 0:05:21]} Re7 {[%emt 0:01:11]} 23. Bc3 {[%emt 0:05:39]} f6 {[%emt 0:04:29]} 24. Bb5 {[%emt 0:03:32]} Qb6 {[%emt 0:01:13]} 25. Rd2 {[%emt 0:07:11]} e5 {[%emt 0:07:07]} 26. dxe5 {[%emt 0:03:51]} fxe5 {[%emt 0:00:29]} 27. Bxd7+ {[%emt 0:07:06]} Rexd7 {[%emt 0:03:13]} 28. fxe5 {[%emt 0:00:47]} Be7 {[%emt 0:00:31]} 29. Rxd7 {[%emt 0:01:04]} Rxd7 {[%emt 0:00:07]} 30. Nf4 {[%emt 0:00:14]} Nc7 {[%emt 0:01:15]} 31. Nd5 {[%emt 0:00:47]} Qe6 {[%emt 0:00:37]} 32. Rd1 {[%emt 0:00:42]} g5 {[%emt 0:00:26]} 33. Qf5 {[%emt 0:00:17]} g6 {[%emt 0:00:35]} 34. Qe4 {[%emt 0:04:13]} b5 {[%emt 0:00:20]} 35. Ba5 {[%emt 0:01:08]} Nxd5 {[%emt 0:00:43]} 36. cxd5 {[%emt 0:00:03]} Qa6 {[%emt 0:00:02]} 37. Be1 {[%emt 0:00:58]} c4 {[%emt 0:00:21]} 38. d6 {[%emt 0:00:31]} Qa4 {[%emt 0:00:03]} 39. Qa8# {[%emt 0:00:47]} 1-0

[Event "Elegant 1st Division League 2024"]
[Site "Dhaka"]
[Date "2024.07.18"]
[Round "8.5"]
[White "Neloy, Debnath"]
[Black "Hossain, Alamgir"]
[Result "1-0"]
[Annotator "RC"]
[ECO "C50"]
[WhiteElo "1959"]
[BlackElo "1974"]
[PlyCount "120"]
[EventDate "2024.07.10"]
[EventType "team-tourn"]
[EventCountry "BAN"]
[SourceTitle "playchess.com"]
[Source "ChessBase"]
[SourceQuality "1"]
[TimeControl "5400+30"]

1. e4 {[%emt 0:00:03]} Nc6 {[%emt 0:00:23]} 2. d4 {[%emt 0:00:07]} e5 {[%emt 0:00:16]} 3. Nf3 {[%emt 0:00:09]} exd4 {[%emt 0:03:22]} 4. Bc4 {[%emt 0:00:05]} Be7 {[%emt 0:01:23]} 5. c3 {[%emt 0:00:13]} Nf6 {[%emt 0:02:47]} 6. e5 {[%emt 0:00:29]} Ne4 {[%emt 0:01:16]} 7. Bd5 {[%emt 0:02:17]} Ng5 {[%emt 0:05:56]} 8. Nxg5 {[%emt 0:01:06]} Bxg5 {[%emt 0:00:42]} 9. Qh5 {[%emt 0:00:09]} Qe7 {[%emt 0:02:48]} 10. Qxg5 {[%emt 0:00:47]} Qxg5 {[%emt 0:00:09]} 11. Bxg5 {[%emt 0:00:09]} dxc3 {[%emt 0:00:14]} 12. Nxc3 {[%emt 0:00:30]} Nxe5 {[%emt 0:01:43]} 13. O-O {[%emt 0:00:18]} f6 {[%emt 0:03:35]} 14. Bf4 {[%emt 0:01:01]} c6 {[%emt 0:00:35]} 15. Bb3 {[%emt 0:03:18]} d6 {[%emt 0:01:28]} 16. Rad1 {[%emt 0:00:45]} Ke7 {[%emt 0:00:26]} 17. Bxe5 {[%emt 0:05:01]} fxe5 {[%emt 0:02:40]} 18. f4 {[%emt 0:00:16]} Be6 {[%emt 0:01:16]} 19. Bxe6 {[%emt 0:02:22]} Kxe6 {[%emt 0:00:11]} 20. fxe5 {[%emt 0:01:07]} d5 {[%emt 0:02:25]} 21. Ne2 {[%emt 0:06:05]} Rhf8 {[%emt 0:01:03]} 22. Nd4+ {[%emt 0:05:29]} Kxe5 {[%emt 0:02:30]} 23. Rfe1+ {[%emt 0:00:05]} Kd6 {[%emt 0:00:57]} 24. Re6+ {[%emt 0:00:29]} Kd7 {[%emt 0:01:24]} 25. Rde1 {[%emt 0:00:05]} Rf7 {[%emt 0:03:10]} 26. R6e5 {[%emt 0:04:12]} Rc8 {[%emt 0:02:00]} 27. Ne6 {[%emt 0:01:28]} h6 {[%emt 0:02:32]} 28. Nc5+ {[%emt 0:00:31]} Kc7 {[%emt 0:09:15]} 29. Rf1 {[%emt 0:08:55]} Rxf1+ {[%emt 0:04:03]} 30. Kxf1 {[%emt 0:00:08]} Kd6 {[%emt 0:00:16]} 31. Nd3 {[%emt 0:00:07]} c5 {[%emt 0:00:42]} 32. Rf5 {[%emt 0:03:52]} Rc7 {[%emt 0:09:44]} 33. Ke2 {[%emt 0:03:02]} b5 {[%emt 0:08:15]} 34. Nf4 {[%emt 0:05:37]} d4 {[%emt 0:02:56]} 35. Rd5+ {[%emt 0:04:42]} Kc6 {[%emt 0:04:44]} 36. b4 {[%emt 0:02:59]} cxb4 {[%emt 0:01:18]} 37. Rxd4 {[%emt 0:00:09]} a5 {[%emt 0:01:19]} 38. Kd3 {[%emt 0:01:16]} Kb7 {[%emt 0:03:14]} 39. Ne2 {[%emt 0:04:42]} Kb6 {[%emt 0:02:15]} 40. Rd6+ {[%emt 0:00:29]} Kc5 {[%emt 0:00:47]} 41. Rd8 {[%emt 0:00:29]} a4 {[%emt 0:02:33]} 42. Nd4 {[%emt 0:00:33]} Rb7 {[%emt 0:05:34]} 43. Rc8+ {[%emt 0:06:15]} Kb6 {[%emt 0:04:04]} 44. Rc6+ {[%emt 0:00:16]} Ka5 {[%emt 0:02:54]} 45. Re6 {[%emt 0:00:09]} Rd7 {[%emt 0:01:07]} 46. Ke3 {[%emt 0:01:22]} b3 {[%emt 0:00:40]} 47. axb3 {[%emt 0:04:26]} axb3 {[%emt 0:00:30]} 48. Nxb3+ {[%emt 0:00:11]} Kb4 {[%emt 0:00:06]} 49. Nd4 {[%emt 0:00:18]} Rb7 {[%emt 0:00:43]} 50. Re5 {[%emt 0:00:30]} Kc4 {[%emt 0:00:27]} 51. Nxb5 {[%emt 0:01:16]} Rxb5 {[%emt 0:00:16]} 52. Rxb5 {[%emt 0:00:18]} Kxb5 {[%emt 0:00:07]} 53. Ke4 {[%emt 0:00:07]} Kc5 {[%emt 0:00:54]} 54. Kf5 {[%emt 0:00:07]} Kd5 {[%emt 0:00:54]} 55. Kg6 {[%emt 0:00:20]} Ke5 {[%emt 0:00:26]} 56. Kxg7 {[%emt 0:00:08]} h5 {[%emt 0:00:08]} 57. Kg6 {[%emt 0:00:05]} h4 {[%emt 0:00:08]} 58. Kg5 {[%emt 0:00:19]} h3 {[%emt 0:00:15]} 59. g3 {[%emt 0:00:06]} Ke4 {[%emt 0:00:15]} 60. Kg4 {[%emt 0:00:06]} Kd5 {[%emt 0:02:30]} 1-0

[Event "Elegant 1st Division League 2024"]
[Site "Dhaka"]
[Date "2024.07.18"]
[Round "8.6"]
[White "Priyanshu Barua"]
[Black "Md, Sariatullah"]
[Result "1-0"]
[Annotator "RC"]
[ECO "C45"]
[WhiteElo "1987"]
[BlackElo "2005"]
[PlyCount "41"]
[EventDate "2024.07.10"]
[EventType "team-tourn"]
[EventCountry "BAN"]
[SourceTitle "playchess.com"]
[Source "ChessBase"]
[SourceQuality "1"]
[TimeControl "5400+30"]

1. e4 {[%emt 0:00:09]} e5 {[%emt 0:00:14]} 2. Nf3 {[%emt 0:04:07]} Nc6 {[%emt 0:00:06]} 3. d4 {[%emt 0:06:00]} exd4 {[%emt 0:04:00]} 4. Nxd4 {[%emt 0:01:00]} Bc5 {[%emt 0:00:17]} 5. Be3 {[%emt 0:00:08]} Bb6 {[%emt 0:00:06]} 6. Nc3 {[%emt 0:04:36]} d6 {[%emt 0:00:32]} 7. Bc4 {[%emt 0:11:48]} Ne5 {[%emt 0:02:26]} 8. Be2 {[%emt 0:00:10]} Nf6 {[%emt 0:00:08]} 9. f4 {[%emt 0:03:06]} Ng6 {[%emt 0:04:06]} 10. Qd2 {[%emt 0:09:52]} Qe7 {[%emt 0:02:50]} 11. Bf3 {[%emt 0:16:45]} Nh4 {[%emt 0:06:09]} 12. O-O-O {[%emt 0:00:29]} Nxf3 {[%emt 0:00:05]} 13. gxf3 {[%emt 0:00:08]} Bd7 {[%emt 0:00:26]} 14. e5 {[%emt 0:01:30]} dxe5 {[%emt 0:00:45]} 15. fxe5 {[%emt 0:00:17]} Qxe5 {[%emt 0:01:17]} 16. Bf4 {[%emt 0:00:16]} Qe7 {[%emt 0:01:40]} 17. Rhe1 {[%emt 0:00:57]} Be6 {[%emt 0:00:32]} 18. Nf5 {[%emt 0:01:13]} Qf8 {[%emt 0:01:43]} 19. Be5 {[%emt 0:06:02]} Nh5 {[%emt 0:08:02]} 20. Bxg7 {[%emt 0:00:41]} Qxg7 {[%emt 0:00:03]} 21. Qd7+ {[%emt 0:00:47]} 1-0

[Event "Elegant 1st Division League 2024"]
[Site "Dhaka"]
[Date "2024.07.18"]
[Round "8.8"]
[White "Khan, Monir Hossain"]
[Black "Noshin, Anjum"]
[Result "0-1"]
[Annotator "RC"]
[ECO "A08"]
[WhiteElo "1928"]
[BlackElo "2056"]
[PlyCount "68"]
[EventDate "2024.07.10"]
[EventType "team-tourn"]
[EventCountry "BAN"]
[SourceTitle "playchess.com"]
[Source "ChessBase"]
[SourceQuality "1"]
[TimeControl "5400+30"]

1. Nf3 {[%emt 0:00:13]} d5 {[%emt 0:00:15]} 2. g3 {[%emt 0:00:02]} Nf6 {[%emt 0:00:20]} 3. Bg2 {[%emt 0:00:04]} c5 {[%emt 0:00:08]} 4. d3 {[%emt 0:00:59]} Nc6 {[%emt 0:00:26]} 5. Nbd2 {[%emt 0:00:39]} e5 {[%emt 0:00:39]} 6. e4 {[%emt 0:00:06]} dxe4 {[%emt 0:01:00]} 7. dxe4 {[%emt 0:00:15]} Bg4 {[%emt 0:01:31]} 8. h3 {[%emt 0:00:20]} Bxf3 {[%emt 0:04:04]} 9. Bxf3 {[%emt 0:00:49]} Be7 {[%emt 0:03:45]} 10. c3 {[%emt 0:01:52]} Qc7 {[%emt 0:05:03]} 11. Qe2 {[%emt 0:00:54]} O-O {[%emt 0:04:20]} 12. Nf1 {[%emt 0:03:16]} Rfe8 {[%emt 0:03:25]} 13. g4 {[%emt 0:00:15]} Na5 {[%emt 0:14:59]} 14. Ne3 {[%emt 0:08:28]} c4 {[%emt 0:00:49]} 15. g5 {[%emt 0:01:02]} Nd7 {[%emt 0:00:12]} 16. Nd5 {[%emt 0:00:21]} Qd8 {[%emt 0:00:37]} 17. Nxe7+ {[%emt 0:03:36]} Qxe7 {[%emt 0:00:15]} 18. Be3 {[%emt 0:00:02]} b5 {[%emt 0:06:00]} 19. O-O-O {[%emt 0:03:48]} Nb7 {[%emt 0:02:34]} 20. Kb1 {[%emt 0:04:52]} Ndc5 {[%emt 0:02:44]} 21. Rd5 {[%emt 0:01:40]} a6 {[%emt 0:04:03]} 22. Rhd1 {[%emt 0:00:43]} Nd3 {[%emt 0:01:23]} 23. Bg4 {[%emt 0:03:13]} Red8 {[%emt 0:01:00]} 24. Rxd8+ {[%emt 0:06:40]} Nxd8 {[%emt 0:01:55]} 25. h4 {[%emt 0:00:36]} Ne6 {[%emt 0:01:39]} 26. f3 {[%emt 0:02:24]} a5 {[%emt 0:00:36]} 27. Qc2 {[%emt 0:06:08]} Rb8 {[%emt 0:06:30]} 28. Rd2 {[%emt 0:05:38]} Nec5 {[%emt 0:04:25]} 29. a3 {[%emt 0:05:09]} Na4 {[%emt 0:05:41]} 30. Qd1 {[%emt 0:01:24]} Ndxb2 {[%emt 0:00:47]} 31. Qf1 {[%emt 0:13:53]} Qxa3 {[%emt 0:04:49]} 32. Bc5 {[%emt 0:07:03]} Nxc3+ {[%emt 0:02:19]} 33. Kc2 {[%emt 0:01:22]} Qa4+ {[%emt 0:00:40]} 34. Kxb2 {[%emt 0:00:11]} Qa2+ {[%emt 0:00:09]} 0-1

[Event "Elegant 1st Division League 2024"]
[Site "Dhaka"]
[Date "2024.07.18"]
[Round "8.9"]
[White "Uddipan Roy"]
[Black "Miraj Uddin, Ahmed"]
[Result "1-0"]
[Annotator "RC"]
[ECO "C03"]
[WhiteElo "1967"]
[BlackElo "1827"]
[PlyCount "89"]
[EventDate "2024.07.10"]
[EventType "team-tourn"]
[EventCountry "BAN"]
[SourceTitle "playchess.com"]
[Source "ChessBase"]
[SourceQuality "1"]
[TimeControl "5400+30"]

1. e4 {[%emt 0:00:03]} e6 {[%emt 0:00:53]} 2. d4 {[%emt 0:00:06]} d5 {[%emt 0:00:05]} 3. Nd2 {[%emt 0:00:05]} f5 {[%emt 0:00:10]} 4. exd5 {[%emt 0:01:34]} exd5 {[%emt 0:00:12]} 5. Ngf3 {[%emt 0:02:00]} Nf6 {[%emt 0:00:10]} 6. Be2 {[%emt 0:12:47]} Bd6 {[%emt 0:00:10]} 7. O-O {[%emt 0:00:24]} O-O {[%emt 0:00:10]} 8. Ne5 {[%emt 0:01:17]} Nbd7 {[%emt 0:00:46]} 9. Ndf3 {[%emt 0:01:43]} Ne4 {[%emt 0:00:54]} 10. c4 {[%emt 0:22:53]} c6 {[%emt 0:01:41]} 11. cxd5 {[%emt 0:20:00]} cxd5 {[%emt 0:00:22]} 12. Bf4 {[%emt 0:02:56]} Qe7 {[%emt 0:06:06]} 13. Nd3 {[%emt 0:04:34]} b6 {[%emt 0:02:05]} 14. Bxd6 {[%emt 0:18:15]} Qxd6 {[%emt 0:00:20]} 15. Nde5 {[%emt 0:02:40]} Bb7 {[%emt 0:00:46]} 16. Rc1 {[%emt 0:07:13]} Rac8 {[%emt 0:00:43]} 17. Qa4 {[%emt 0:00:00]} Nxe5 {[%emt 0:00:15]} 18. dxe5 {[%emt 0:00:00]} Qb8 {[%emt 0:00:34]} 19. Rcd1 {[%emt 0:00:00]} Nc5 {[%emt 0:00:18]} 20. Qh4 {[%emt 0:00:00]} Rc6 {[%emt 0:00:46]} 21. Bb5 {[%emt 0:01:03]} Rh6 {[%emt 0:00:34]} 22. Qd4 {[%emt 0:00:05]} a6 {[%emt 0:01:59]} 23. Be2 {[%emt 0:01:38]} Re8 {[%emt 0:01:14]} 24. Rfe1 {[%emt 0:00:24]} Ne4 {[%emt 0:00:57]} 25. Qe3 {[%emt 0:00:46]} g5 {[%emt 0:07:08]} 26. Nxg5 {[%emt 0:00:26]} Qxe5 {[%emt 0:00:58]} 27. Nf3 {[%emt 0:00:21]} Qg7 {[%emt 0:00:41]} 28. Qd4 {[%emt 0:00:31]} Qc7 {[%emt 0:01:21]} 29. Rc1 {[%emt 0:00:18]} Qb8 {[%emt 0:00:22]} 30. g3 {[%emt 0:00:28]} f4 {[%emt 0:00:38]} 31. Bd3 {[%emt 0:00:57]} fxg3 {[%emt 0:02:13]} 32. hxg3 {[%emt 0:00:22]} Rf8 {[%emt 0:07:23]} 33. Rxe4 {[%emt 0:00:29]} dxe4 {[%emt 1:04:06]} 34. Bc4+ {[%emt 0:00:01]} Rf7 {[%emt 0:00:00]} 35. Bxf7+ {[%emt 0:00:42]} Kxf7 {[%emt 0:00:00]} 36. Qd7+ {[%emt 0:00:03]} Kg8 {[%emt 0:00:00]} 37. Rc7 {[%emt 0:01:18]} Qf8 {[%emt 0:00:00]} 38. Rxb7 {[%emt 0:00:29]} exf3 {[%emt 0:00:00]} 39. Qd5+ {[%emt 0:00:19]} Kh8 {[%emt 0:00:00]} 40. Qe5+ {[%emt 0:00:02]} Rf6 {[%emt 0:00:00]} 41. Rb8 {[%emt 0:00:05]} Qxb8 {[%emt 0:00:00]} 42. Qxb8+ {[%emt 0:00:05]} Kg7 {[%emt 0:00:00]} 43. Qb7+ {[%emt 0:00:04]} Kg6 {[%emt 0:00:00]} 44. Qxa6 {[%emt 0:00:04]} Rd6 {[%emt 0:00:00]} 45. Qa4 {[%emt 0:00:18]} 1-0

[Event "Elegant 1st Division League 2024"]
[Site "Dhaka"]
[Date "2024.07.18"]
[Round "8.10"]
[White "Shatadru Shovan, Dey"]
[Black "Abdul, Momin"]
[Result "1-0"]
[Annotator "RC"]
[ECO "D92"]
[WhiteElo "1879"]
[BlackElo "1911"]
[PlyCount "117"]
[EventDate "2024.07.10"]
[EventType "team-tourn"]
[EventCountry "BAN"]
[SourceTitle "playchess.com"]
[Source "ChessBase"]
[SourceQuality "1"]
[TimeControl "5400+30"]

1. d4 {[%emt 0:00:03]} Nf6 {[%emt 0:00:33]} 2. Bf4 {[%emt 0:00:10]} e6 {[%emt 0:01:11]} 3. e3 {[%emt 0:00:07]} g6 {[%emt 0:00:21]} 4. c4 {[%emt 0:00:17]} Bg7 {[%emt 0:00:14]} 5. Nc3 {[%emt 0:00:09]} d5 {[%emt 0:00:36]} 6. Nf3 {[%emt 0:01:39]} O-O {[%emt 0:06:30]} 7. b4 {[%emt 0:01:47]} dxc4 {[%emt 0:00:26]} 8. Bxc4 {[%emt 0:00:10]} a6 {[%emt 0:00:06]} 9. Qb3 {[%emt 0:04:21]} Re8 {[%emt 0:04:30]} 10. h3 {[%emt 0:00:27]} Nbd7 {[%emt 0:00:36]} 11. O-O {[%emt 0:00:27]} b6 {[%emt 0:00:48]} 12. b5 {[%emt 0:00:56]} a5 {[%emt 0:01:08]} 13. Rfd1 {[%emt 0:00:25]} Bb7 {[%emt 0:00:09]} 14. Ng5 {[%emt 0:00:50]} Nf8 {[%emt 0:00:41]} 15. Be2 {[%emt 0:29:07]} h6 {[%emt 0:08:30]} 16. Nf3 {[%emt 0:00:09]} g5 {[%emt 0:01:37]} 17. Bh2 {[%emt 0:00:56]} Qe7 {[%emt 0:01:10]} 18. Rac1 {[%emt 0:00:32]} Rac8 {[%emt 0:00:24]} 19. Rc2 {[%emt 0:02:08]} Red8 {[%emt 0:00:34]} 20. Rdc1 {[%emt 0:00:03]} Ng6 {[%emt 0:00:40]} 21. Nd1 {[%emt 0:04:05]} Ne8 {[%emt 0:00:08]} 22. Nb2 {[%emt 0:01:06]} Kh7 {[%emt 0:04:46]} 23. Nd3 {[%emt 0:00:28]} Bd5 {[%emt 0:00:46]} 24. Qa4 {[%emt 0:00:48]} Be4 {[%emt 0:00:56]} 25. Rc3 {[%emt 0:00:49]} Nd6 {[%emt 0:02:03]} 26. Nd2 {[%emt 0:01:58]} Bd5 {[%emt 0:00:28]} 27. Bf3 {[%emt 0:04:14]} Nh4 {[%emt 0:05:00]} 28. Bxd5 {[%emt 0:00:58]} exd5 {[%emt 0:00:17]} 29. Bxd6 {[%emt 0:01:37]} Rxd6 {[%emt 0:00:14]} 30. Qc2 {[%emt 0:00:15]} c5 {[%emt 0:04:39]} 31. bxc6 {[%emt 0:02:43]} f5 {[%emt 0:01:09]} 32. c7 {[%emt 0:02:13]} g4 {[%emt 0:01:14]} 33. Nf4 {[%emt 0:03:05]} gxh3 {[%emt 0:00:41]} 34. g3 {[%emt 0:00:13]} Qg5 {[%emt 0:00:53]} 35. Rc6 {[%emt 0:02:20]} Rd7 {[%emt 0:02:59]} 36. Kh2 {[%emt 0:01:21]} Rf7 {[%emt 0:02:06]} 37. gxh4 {[%emt 0:00:19]} Qxh4 {[%emt 0:00:03]} 38. Nf3 {[%emt 0:00:22]} Qe7 {[%emt 0:02:37]} 39. Nxd5 {[%emt 0:00:20]} Qa3 {[%emt 0:01:16]} 40. Kh1 {[%emt 0:01:05]} Kg8 {[%emt 0:03:30]} 41. Nxb6 {[%emt 0:00:25]} Rcxc7 {[%emt 0:00:35]} 42. Rxc7 {[%emt 0:00:02]} Rxc7 {[%emt 0:00:21]} 43. Qxc7 {[%emt 0:00:03]} f4 {[%emt 0:00:02]} 44. Rg1 {[%emt 0:00:39]} Qf8 {[%emt 0:00:18]} 45. e4 {[%emt 0:01:15]} Kh8 {[%emt 0:00:12]} 46. Qxg7+ {[%emt 0:01:46]} Qxg7 {[%emt 0:00:01]} 47. Rxg7 {[%emt 0:00:09]} Kxg7 {[%emt 0:00:01]} 48. a4 {[%emt 0:00:24]} Kf6 {[%emt 0:00:03]} 49. Kh2 {[%emt 0:00:10]} Ke6 {[%emt 0:00:04]} 50. Kxh3 {[%emt 0:00:12]} Kd6 {[%emt 0:47:24]} 51. Kg4 {[%emt 0:00:24]} Kc6 {[%emt 0:00:00]} 52. Nc4 {[%emt 0:00:12]} h5+ {[%emt 0:00:00]} 53. Kxh5 {[%emt 0:00:12]} Kc7 {[%emt 0:00:00]} 54. Kg5 {[%emt 0:00:11]} Kc6 {[%emt 0:00:00]} 55. Kxf4 {[%emt 0:00:11]} Kc7 {[%emt 0:00:00]} 56. Nxa5 {[%emt 0:00:16]} Kd6 {[%emt 0:00:00]} 57. Nc4+ {[%emt 0:00:14]} Kc6 {[%emt 0:00:00]} 58. Kf5 {[%emt 0:00:19]} Kc7 {[%emt 0:00:00]} 59. Nfe5 {[%emt 0:02:30]} 1-0